bitfinex-derivatives/quotes_SOLF0:USTF0_20241203
["timestamp","ask_amount","ask_price","bid_price","bid_amount"]
[1733254324243,2.26,226.93,226.86,1.3702]
[1733254324445,2.26,226.95,226.87,11.29732127]
[1733254324748,2.26,226.95,226.94,2.2025]
[1733254327042,43.4418,227.02,226.94,2.2025]
[1733254327249,2.26,227.01,227.0,2.2019]
[1733254327544,2.26,227.01,226.88,2.26]
[1733254327743,2.26,227.01,226.9,11.29732127]
[1733254328249,2.26,227.01,226.99,2.202]
[1733254328545,2.26,227.01,226.93,11.29732127]
[1733254328750,2.26,227.01,227.0,2.2019]
[1733254329054,2.26,227.01,226.91,1.3682]
[1733254329850,2.26,227.01,226.97,2.2021]
[1733254330148,2.26,227.01,226.93,11.29732127]
[1733254330343,41.28,227.16,226.99,11.29732127]
[1733254330650,2.26,227.15,226.99,11.29732127]
[1733254330842,11.29732127,227.13,226.99,11.29732127]
[1733254331042,2.2011,227.09,226.99,11.29732127]
[1733254331243,2.26,227.08,226.96,11.29732127]
[1733254331542,2.26,227.07,227.04,2.2015]
[1733254331745,2.26,227.07,226.96,11.29732127]
[1733254331951,2.26,227.07,226.99,11.29732127]
[1733254332450,2.26,227.06,226.97,2.7467]
[1733254332641,2.26,227.05,227.03,2.2015]
[1733254332846,2.26,227.05,226.97,2.7467]
[1733254333046,2.26,227.05,226.99,11.29732127]
[1733254333242,2.26,227.05,227.04,2.2015]
[1733254337549,2.26,227.09,227.04,2.2015]
[1733254337848,2.26,227.09,227.02,11.29732127]
[1733254338347,2.26,227.09,227.08,2.2012]
[1733254338554,2.26,227.09,227.08,1.19811389]
[1733254340749,2.26,227.09,227.02,11.29732127]
[1733254341350,2.26,227.09,227.08,2.2012]
[1733254341549,2.26,227.09,227.08,1.20140443]
[1733254342648,9.13143112,227.09,227.08,0.65856891]
[1733254342854,2.26,227.09,227.02,11.29732127]
[1733254343250,2.26,227.09,227.08,2.2012]
[1733254344153,2.26,227.09,226.97,2.7467]
[1733254344349,2.2013,227.07,226.97,2.7467]
[1733254344548,2.26,227.09,226.97,2.7467]
[1733254345057,2.26,227.09,226.99,11.29732127]
[1733254345349,2.26,227.08,227.02,11.29732127]
[1733254345754,2.26,227.08,227.07,2.2013]
[1733254345950,2.26,227.08,227.07,1.20845132]
[1733254346848,52.57732127,227.16,227.02,11.29732127]
[1733254347157,2.26,227.15,227.1,2.2009]
[1733254347356,2.2007,227.14,227.1,2.2009]
[1733254347855,2.26,227.15,227.02,11.29732127]
[1733254348256,2.26,227.15,227.09,2.201]
[1733254348456,2.26,227.15,227.02,11.29732127]
[1733254348652,11.29732127,227.13,226.99,11.29732127]
[1733254349153,11.29732127,227.1,226.97,2.7467]
[1733254349458,3.6061,227.09,226.97,2.7467]
[1733254349653,7.21829727,227.04,226.97,7.21829727]
[1733254349855,7.21829727,227.02,226.95,7.21829727]
[1733254350055,2.26,227.01,226.95,7.21829727]
[1733254350256,2.26,227.01,226.97,7.21829727]
[1733254350653,2.26,227.01,227.0,2.202]
[1733254351049,2.26,227.01,226.95,7.21829727]
[1733254351251,2.26,227.01,226.96,2.2023]
[1733254351558,2.26,227.01,226.93,31.46781434]
[1733254353060,2.26,227.01,226.91,2.5906]
[1733254353355,6.8755053,227.0,226.89,11.28030305]
[1733254353558,6.8755053,226.99,226.89,11.28030305]
[1733254353858,2.2022,226.99,226.92,2.2027]
[1733254354058,2.2022,226.99,226.89,11.28030305]
[1733254354361,6.87621236,226.98,226.89,11.28030305]
[1733254354559,2.26,227.01,226.89,11.28030305]
[1733254354853,2.2022,226.98,226.89,11.28030305]
[1733254355058,2.26,227.01,226.89,11.28030305]
[1733254355254,2.26,227.01,226.83,3.8939]
[1733254355255,11.28030305,226.97,226.83,15.17420305]
[1733254355461,2.26,226.96,226.83,13.90930305]
[1733254355661,6.87751427,226.95,226.8,11.28030305]
[1733254355852,6.87751427,226.94,226.8,11.28030305]
[1733254356058,6.87751427,226.93,226.86,2.2033]
[1733254356460,2.2028,226.91,226.86,2.2033]
[1733254356660,2.26,226.9,226.86,2.2033]
[1733254357255,4.4629,226.9,226.85,2.2034]
[1733254357453,2.26,226.9,226.8,11.28030305]
[1733254359262,2.26,226.9,226.85,2.2034]
[1733254359463,2.26,226.9,226.8,11.28030305]
[1733254359859,2.203,226.89,226.84,2.2035]
[1733254360066,2.26,226.9,226.83,11.28030305]
[1733254360862,2.26,226.9,226.8,11.28030305]
[1733254361160,2.26,226.9,226.77,11.28030305]
[1733254361559,11.28030305,226.94,226.8,11.28030305]
[1733254361755,2.26,226.93,226.8,11.28030305]
[1733254362161,4.4627,226.93,226.87,2.2031]
[1733254362357,4.4627,226.93,226.83,11.28030305]
[1733254362967,2.2028,226.92,226.83,11.28030305]
[1733254363269,2.26,226.93,226.87,2.2031]
[1733254363864,2.26,226.93,226.86,2.2033]
[1733254364468,2.2029,226.9,226.84,2.2034]
[1733254364664,2.2029,226.9,226.8,11.28030305]
[1733254365070,2.203,226.89,226.84,2.2035]
[1733254365270,2.26,226.88,226.8,11.28030305]
[1733254365464,2.26,226.87,226.8,11.28030305]
[1733254365668,2.26,226.87,226.77,11.28030305]
[1733254365964,2.26,226.87,226.74,15.24020305]
[1733254366267,2.26,226.87,226.74,13.88730305]
[1733254366461,11.28030305,226.85,226.72,31.51407545]
[1733254366862,2.26,226.87,226.72,31.51407545]
[1733254367063,11.28030305,226.82,226.72,31.51407545]
[1733254367267,2.26,226.81,226.69,11.28030305]
[1733254367666,2.204,226.8,226.75,2.2044]
[1733254367971,2.26,226.81,226.69,11.28030305]
[1733254368165,2.2044,226.75,226.66,12.55790305]
[1733254368370,2.26,226.74,226.66,12.55790305]
[1733254369173,2.26,226.74,226.7,2.2049]
[1733254369870,2.26,226.74,226.67,2.2051]
[1733254370066,2.26,226.74,226.63,11.28030305]
[1733254370269,2.2048,226.71,226.63,11.28030305]
[1733254370473,13.54030305,226.74,226.6,11.28030305]
[1733254370976,13.54030305,226.74,226.64,2.2054]
[1733254371275,2.26,226.74,226.67,11.28030305]
[1733254371475,2.26,226.74,226.69,2.205]
[1733254371773,2.26,226.74,226.67,11.28030305]
[1733254371975,2.26,226.74,226.64,11.28030305]
[1733254372174,2.26,226.74,226.71,2.2048]
[1733254372366,2.26,226.74,226.64,11.28030305]
[1733254372571,2.26,226.74,226.7,2.2048]
[1733254372774,2.26,226.74,226.64,11.28030305]
[1733254373773,2.26,226.74,226.59,32.90433797]
[1733254373968,2.26,226.74,226.62,11.28030305]
[1733254374276,4.0719,226.79,226.73,11.28030305]
[1733254374470,2.26,226.82,226.73,11.28030305]
[1733254374670,2.26,226.81,226.73,11.28030305]
[1733254374867,2.26,226.8,226.77,2.2041]
[1733254375073,2.26,226.79,226.77,2.2041]
[1733254375271,2.26,226.79,226.73,11.28030305]
[1733254375472,2.26,226.79,226.78,2.2041]
[1733254376575,2.26,226.79,226.77,2.2042]
[1733254377077,2.6401,226.9,226.73,11.28030305]
[1733254377272,2.6401,226.9,226.63,2.26]
[1733254377273,2.26,226.89,226.79,11.28030305]
[1733254377675,2.26,226.89,226.87,2.2032]
[1733254377974,2.26,226.89,226.79,11.28030305]
[1733254380174,2.26,226.89,226.85,2.2034]
[1733254380371,2.26,226.89,226.79,11.28030305]
[1733254380972,2.26,226.89,226.76,11.28030305]
[1733254381578,13.54030305,226.89,226.76,11.28030305]
[1733254381779,2.26,226.88,226.76,11.28030305]
[1733254381974,2.26,226.88,226.72,4.0223]
[1733254381975,2.26,226.88,226.84,2.2034]
[1733254382172,2.26,226.88,226.79,11.28030305]
[1733254382970,2.26,226.88,226.76,11.28030305]
[1733254383581,2.26,226.88,226.83,2.2035]
[1733254383776,2.26,226.88,226.76,11.28030305]
[1733254384275,2.26,226.88,226.79,11.28030305]
[1733254384871,2.26,226.88,226.86,2.2032]
[1733254385378,2.2027,226.92,226.86,2.2032]
[1733254385578,2.26,226.91,226.86,2.2032]
[1733254386980,2.26,226.9,226.86,2.2032]
[1733254387379,2.26,226.9,226.85,2.2034]
[1733254387576,2.26,226.9,226.75,2.26]
[1733254387880,6.83272917,226.89,226.82,2.2037]
[1733254388081,2.26,226.9,226.78,11.28030305]
[1733254388381,2.26,226.9,226.81,2.2038]
[1733254388382,9.03496396,226.89,226.81,2.2038]
[1733254388677,9.03496396,226.89,226.78,11.28030305]
[1733254388678,2.26,226.9,226.78,11.28030305]
[1733254388879,2.2031,226.88,226.78,11.28030305]
[1733254389276,2.26,226.87,226.78,11.28030305]
[1733254389477,6.84526167,226.86,226.78,11.28030305]
[1733254390686,6.84526167,226.86,226.75,11.28030305]
[1733254391077,6.84526167,226.86,226.84,2.2035]
[1733254391484,6.84526167,226.86,226.75,11.28030305]
[1733254392681,6.84526167,226.86,226.72,15.30260305]
[1733254393084,2.2038,226.82,226.76,2.2043]
[1733254393281,2.26,226.81,226.72,15.30260305]
[1733254393891,2.2079321,226.92,226.72,15.30260305]
[1733254393892,2.26,226.82,226.75,11.28030305]
[1733254394197,2.26,226.86,226.81,11.28030305]
[1733254394487,9.11709718,226.85,226.78,11.28030305]
[1733254394785,1.323,226.92,226.78,11.28030305]
[1733254394786,6.85709718,226.84,226.78,11.28030305]
[1733254394992,2.26,226.86,226.75,11.28030305]
[1733254394993,6.85709718,226.83,226.75,11.28030305]
[1733254395191,6.85709718,226.82,226.72,15.30260305]
[1733254395387,2.34,226.81,226.72,15.30260305]
[1733254395687,9.19707212,226.8,226.72,15.30260305]
[1733254395887,2.34,226.8,226.72,15.30260305]
[1733254396288,6.86275714,226.79,226.72,15.30260305]
[1733254396482,2.34,226.8,226.72,15.30260305]
[1733254396694,2.34,226.8,226.76,2.2042]
[1733254397189,2.34,226.8,226.77,2.2042]
[1733254397393,2.34,226.8,226.77,1.23560888]
[1733254398089,11.28030305,226.88,226.72,15.30260305]
[1733254398387,9.20476107,226.87,226.72,15.30260305]
[1733254398594,2.2035,226.84,226.79,2.2039]
[1733254398786,6.86476107,226.83,226.72,15.30260305]
[1733254398990,6.86476107,226.83,226.75,11.28030305]
[1733254399192,2.34,226.82,226.75,11.28030305]
[1733254399497,6.87032944,226.81,226.75,11.28030305]
[1733254399793,2.34,226.82,226.72,15.30260305]
[1733254399994,6.86984889,226.81,226.72,4.0223]
[1733254400189,6.86984889,226.8,226.72,4.0223]
[1733254400495,2.34,226.82,226.72,15.30260305]
[1733254400694,6.87221647,226.81,226.72,15.30260305]
[1733254400992,6.87221647,226.8,226.72,15.30260305]
[1733254401195,4.5437,226.82,226.72,15.30260305]
[1733254401399,6.87252337,226.81,226.72,15.30260305]
[1733254401695,6.87252337,226.8,226.72,15.30260305]
[1733254401894,4.5437,226.82,226.72,15.30260305]
[1733254402094,6.87263507,226.81,226.77,2.2041]
[1733254402292,4.5437,226.82,226.77,2.2041]
[1733254402293,6.87263507,226.8,226.77,2.2041]
[1733254402599,2.2038,226.81,226.77,2.2041]
[1733254402789,6.87348463,226.8,226.77,2.2041]
[1733254403101,6.87348463,226.79,226.77,2.2041]
[1733254403299,2.2038,226.81,226.77,2.2041]
[1733254403592,6.87422217,226.8,226.77,2.2041]
[1733254403797,6.87422217,226.79,226.77,2.2041]
[1733254403990,6.87422217,226.78,226.77,2.2041]
[1733254405898,2.34,226.81,226.76,2.2042]
[1733254406095,11.28030305,226.91,226.78,11.28030305]
[1733254406396,2.34,226.9,226.78,11.28030305]
[1733254406598,2.34,226.9,226.8,2.2039]
[1733254406893,2.2035,226.85,226.8,2.2039]
[1733254407098,2.34,226.84,226.8,2.2039]
[1733254407403,2.34,226.84,226.75,11.28030305]
[1733254407699,2.34,226.84,226.82,2.2037]
[1733254410396,2.34,226.84,226.83,2.2036]
[1733254410603,2.34,226.84,226.75,11.28030305]
[1733254411794,1.323,226.92,226.81,11.28030305]
[1733254411992,1.323,226.92,226.84,11.28030305]
[1733254411993,2.34,226.91,226.84,11.28030305]
[1733254412298,2.34,226.92,226.84,11.28030305]
[1733254412597,2.34,226.92,226.85,1.3755]
[1733254413395,2.34,226.92,226.91,2.2028]
[1733254421406,13.86050305,227.03,226.97,2.2022]
[1733254421407,2.5802,227.03,226.97,2.2022]
[1733254421608,2.34,227.02,226.97,2.2022]
[1733254422313,2.34,227.02,226.9,11.28030305]
[1733254422910,4.5419,227.02,226.9,11.28030305]
[1733254423306,2.34,227.02,226.9,11.28030305]
[1733254424409,2.2019,227.01,226.96,2.2024]
[1733254424805,303.44328219,227.14,227.0,11.28030305]
[1733254425005,2.28,227.13,227.0,11.28030305]
[1733254425215,11.28030305,227.18,227.03,11.28030305]
[1733254425411,2.28,227.17,227.03,11.28030305]
[1733254426016,13.48050305,227.18,227.07,2.2012]
[1733254426212,13.48050305,227.18,227.03,11.28030305]
[1733254426213,2.28,227.17,227.09,11.28030305]
[1733254426417,2.28,227.16,227.09,11.28030305]
[1733254426913,2.28,227.17,227.1,1.3455]
[1733254427615,2.28,227.16,227.1,1.3455]
[1733254427810,2.28,227.15,227.14,2.2005]
[1733254428316,1.3992,227.23,227.1,1.3455]
[1733254428615,2.28,227.22,227.12,11.28030305]
[1733254429016,2.28,227.22,227.17,2.2003]
[1733254429421,2.28,227.22,227.12,11.28030305]
[1733254430710,2.28,227.22,227.18,2.2002]
[1733254431421,2.28,227.22,227.18,1.24293023]
[1733254432821,1.3508,227.31,227.15,11.28030305]
[1733254433022,2.28,227.3,227.2,11.28030305]
[1733254433418,2.28,227.3,227.26,2.1994]
[1733254433613,1.3508,227.31,227.23,11.28030305]
[1733254433921,2.28,227.3,227.29,2.1991]
[1733254434517,2.28,227.3,227.29,1.26555803]
[1733254434820,2.28,227.3,227.23,11.28030305]
[1733254435520,2.28,227.3,227.28,2.1992]
[1733254435715,2.28,227.3,227.28,1.26899405]
[1733254435922,2.28,227.3,227.23,11.28030305]
[1733254437414,2.28,227.29,227.27,2.1993]
[1733254437613,2.28,227.28,227.27,2.1993]
[1733254437819,3.5268,227.36,227.26,11.28030305]
[1733254438019,2.28,227.35,227.29,2.1991]
[1733254438214,3.5268,227.36,227.29,2.1991]
[1733254438215,2.28,227.34,227.29,2.1991]
[1733254438718,2.28,227.34,227.28,2.1992]
[1733254439023,1.3283,227.36,227.26,11.28030305]
[1733254439224,2.28,227.35,227.28,2.1992]
[1733254439419,1.3837,227.37,227.26,11.28030305]
[1733254439627,2.28,227.34,227.26,11.28030305]
[1733254440125,2.28,227.34,227.31,2.1989]
[1733254440315,2.28,227.34,227.26,11.28030305]
[1733254442325,2.28,227.34,227.23,11.28030305]
[1733254443126,2.1987,227.33,227.23,11.28030305]
[1733254443925,2.28,227.34,227.2,12.55510305]
[1733254444125,11.28030305,227.33,227.2,12.55510305]
[1733254444622,2.1993,227.28,227.2,14.75500305]
[1733254444928,2.28,227.27,227.17,11.28030305]
[1733254445129,4.4795,227.26,227.19,2.2]
[1733254445329,4.4795,227.26,227.17,11.28030305]
[1733254445330,2.28,227.25,227.17,11.28030305]
[1733254445723,2.28,227.25,227.19,2.2001]
[1733254445925,2.28,227.25,227.17,11.28030305]
[1733254446327,2.28,227.25,227.22,2.1998]
[1733254446727,2.28,227.24,227.22,2.1998]
[1733254447532,2.28,227.24,227.23,2.1997]
[1733254447828,2.28,227.24,227.2,11.28030305]
[1733254448022,2.28,227.24,227.22,2.1998]
[1733254448225,2.28,227.24,227.2,11.28030305]
[1733254448426,11.28030305,227.36,227.23,11.28030305]
[1733254448624,2.1989,227.32,227.23,11.28030305]
[1733254448930,1.3837,227.37,227.26,11.28030305]
[1733254449133,1.3837,227.37,227.29,11.28030305]
[1733254449430,2.28,227.36,227.29,11.28030305]
[1733254449628,2.28,227.36,227.31,2.1989]
[1733254450229,2.28,227.36,227.29,11.28030305]
[1733254451428,2.28,227.35,227.32,2.1988]
[1733254451629,2.28,227.34,227.32,2.1988]
[1733254452030,2.28,227.34,227.33,2.1987]
[1733254454032,2.28,227.34,227.29,11.28030305]
[1733254454233,2.28,227.34,227.33,2.1987]
[1733254454725,2.28,227.34,227.31,2.1988]
[1733254455138,2.28,227.34,227.29,11.28030305]
[1733254455333,2.28,227.34,227.3,2.199]
[1733254455731,2.28,227.34,227.29,11.28030305]
[1733254456230,2.28,227.34,227.26,11.28030305]
[1733254456627,2.28,227.34,227.28,2.1992]
[1733254456829,2.28,227.34,227.29,11.28030305]
[1733254458434,2.28,227.34,227.33,2.1987]
[1733254460630,1.2861,227.44,227.34,2.1986]
[1733254460631,2.28,227.35,227.34,2.1986]
[1733254460837,2.28,227.4,227.32,11.28030305]
[1733254461035,41.22,227.46,227.36,11.28030305]
[1733254461036,2.28,227.41,227.36,11.28030305]
[1733254461235,2.28,227.41,227.37,2.1983]
[1733254461630,2.28,227.41,227.28,2.6491]
[1733254461835,2.28,227.41,227.33,2.1987]
[1733254462036,2.28,227.41,227.3,11.28030305]
[1733254462936,2.1982,227.39,227.3,11.28030305]
[1733254464734,2.28,227.41,227.33,11.28030305]
[1733254465139,2.28,227.41,227.37,2.1983]
[1733254465342,2.28,227.41,227.37,1.27538376]
[1733254465740,4.478,227.41,227.36,2.1984]
[1733254465951,2.28,227.41,227.3,11.28030305]
[1733254466447,2.1982,227.39,227.34,2.1986]
[1733254466648,2.28,227.41,227.33,11.28030305]
[1733254467149,2.28,227.41,227.36,2.1984]
[1733254467349,2.28,227.41,227.33,11.28030305]
[1733254467749,2.28,227.41,227.37,2.1983]
[1733254468149,2.28,227.41,227.35,2.1985]
[1733254468354,2.28,227.41,227.33,11.28030305]
[1733254468551,303.44328219,227.51,227.4,11.28030305]
[1733254468750,2.28,227.5,227.4,11.28030305]
[1733254468950,2.1972,227.49,227.43,2.1978]
[1733254469446,2.1972,227.49,227.43,1.28163214]
[1733254470247,2.1972,227.49,227.4,11.28030305]
[1733254470553,4.4771,227.5,227.4,11.28030305]
[1733254471450,2.28,227.5,227.4,11.28030305]
[1733254471649,13.56030305,227.5,227.37,11.28030305]
[1733254471845,2.28,227.5,227.37,11.28030305]
[1733254472053,303.44328219,227.53,227.48,2.1973]
[1733254472356,303.44328219,227.53,227.46,7.87945434]
[1733254472750,2.28,227.52,227.46,7.87945434]
[1733254472954,171.46229126,227.59,227.49,11.28030305]
[1733254473150,171.46229126,227.59,227.52,11.28030305]
[1733254473151,2.28,227.58,227.52,11.28030305]
[1733254473356,171.46229126,227.59,227.52,8.88863205]
[1733254473658,171.46229126,227.59,227.58,11.28030305]
[1733254473860,2.28,227.65,227.6,2.1961]
[1733254474060,2.28,227.65,227.58,11.28030305]
[1733254474254,2.663,227.71,227.58,11.28030305]
[1733254474471,2.663,227.71,227.61,11.28030305]
[1733254474472,2.28,227.7,227.61,11.28030305]
[1733254474854,2.28,227.69,227.61,11.28030305]
[1733254475053,2.28,227.69,227.62,2.1958]
[1733254475659,2.1954,227.68,227.61,11.28030305]
[1733254475858,2.1954,227.68,227.55,2.28]
[1733254475859,2.1954,227.68,227.58,11.28030305]
[1733254476556,2.28,227.69,227.58,11.28030305]
[1733254476757,13.56030305,227.69,227.55,13.47680305]
[1733254476953,11.28030305,227.66,227.52,11.28030305]
[1733254477254,2.28,227.69,227.58,2.1963]
[1733254477763,2.28,227.69,227.56,11.28030305]
[1733254477764,13.56030305,227.69,227.56,11.28030305]
[1733254478256,2.1956,227.67,227.58,2.1963]
[1733254478452,13.56030305,227.69,227.58,2.1963]
[1733254478760,13.56030305,227.69,227.56,11.28030305]
[1733254479754,2.1957,227.65,227.58,2.1963]
[1733254479958,2.28,227.64,227.58,2.1963]
[1733254480566,2.28,227.64,227.61,2.1961]
[1733254480863,2.28,227.64,227.59,11.28030305]
[1733254481963,2.28,227.64,227.62,2.1959]
[1733254482764,2.28,227.64,227.63,2.1959]
[1733254483164,11.28030305,227.75,227.63,2.1959]
[1733254483371,2.1951,227.71,227.64,2.1958]
[1733254484159,2.1951,227.71,227.63,2.1959]
[1733254484564,2.1952,227.7,227.63,2.1959]
[1733254484766,11.28030305,227.75,227.59,11.28030305]
[1733254484767,2.28,227.69,227.59,11.28030305]
[1733254485067,2.28,227.69,227.63,2.1958]
[1733254486067,13.56030305,227.69,227.49,3.9457]
[1733254486265,13.56030305,227.69,227.54,11.28030305]
[1733254486460,13.56030305,227.69,227.57,11.28030305]
[1733254487162,4.02,227.68,227.57,11.28030305]
[1733254487361,2.32,227.74,227.63,11.28030305]
[1733254487560,2.32,227.73,227.63,11.28030305]
[1733254487763,2.32,227.72,227.63,11.28030305]
[1733254488364,2.195,227.73,227.67,2.1954]
[1733254488570,2.32,227.72,227.63,11.28030305]
[1733254489274,2.32,227.72,227.66,11.28030305]
[1733254490174,2.32,227.72,227.69,2.1953]
[1733254492876,4.5151,227.72,227.67,2.1955]
[1733254493478,4.5151,227.72,227.66,11.28030305]
[1733254493677,2.32,227.72,227.66,11.28030305]
[1733254495077,2.1952,227.71,227.67,2.1955]
[1733254495977,4.5152,227.71,227.67,2.1955]
[1733254496374,4.5152,227.71,227.66,13.47590305]
[1733254497075,2.32,227.71,227.67,2.1955]
[1733254498582,4.5152,227.71,227.67,2.1955]
[1733254499571,2.32,227.71,227.67,2.1955]
[1733254500176,2.32,227.71,227.68,2.1954]
[1733254500680,2.32,227.71,227.66,11.28030305]
[1733254500879,4.5152,227.71,227.66,13.47590305]
[1733254501075,4.5152,227.71,227.66,11.28030305]
[1733254501480,2.1953,227.7,227.66,13.47590305]
[1733254501780,2.32,227.71,227.66,11.28030305]
[1733254502279,2.32,227.71,227.67,2.1955]
[1733254502675,2.32,227.71,227.66,11.28030305]
[1733254502979,2.32,227.71,227.66,13.47590305]
[1733254503579,4.5152,227.71,227.66,13.47590305]
[1733254504784,2.32,227.71,227.68,2.1954]
[1733254505777,2.32,227.71,227.7,7.17282842]
[1733254505979,2.32,227.75,227.7,7.17282842]
[1733254506179,2.32,227.75,227.74,7.17282842]
[1733254507576,2.32,227.77,227.76,2.1947]
[1733254507776,2.5659,227.86,227.76,9.36752842]
[1733254507981,7.17282842,227.84,227.76,9.36752842]
[1733254508180,2.1943,227.8,227.78,7.17282842]
[1733254508479,9.49282842,227.85,227.78,7.17282842]
[1733254508881,9.49282842,227.85,227.77,2.1945]
[1733254509077,2.1944,227.8,227.76,9.36742842]
[1733254509283,2.32,227.8,227.78,7.17282842]
[1733254509783,2.32,227.8,227.75,11.19881311]
[1733254510082,1.3946,227.92,227.75,11.19881311]
[1733254510284,2.32,227.91,227.78,11.19881311]
[1733254510780,2.1937,227.87,227.83,2.194]
[1733254510979,2.32,227.86,227.83,2.194]
[1733254511185,2.32,227.86,227.78,11.19881311]
[1733254511391,2.32,227.86,227.75,11.19881311]
[1733254512493,2.1941,227.82,227.75,11.19881311]
[1733254512790,2.32,227.81,227.75,11.19881311]
[1733254513290,2.32,227.81,227.72,11.19881311]
[1733254513592,2.32,227.81,227.74,2.1948]
[1733254513792,2.32,227.81,227.72,11.19881311]
[1733254514593,2.32,227.81,227.7,1.3787]
[1733254514895,1.3018,227.84,227.71,11.19881311]
[1733254515088,2.1942,227.81,227.71,11.19881311]
[1733254515285,2.1942,227.81,227.74,11.19881311]
[1733254515489,2.1942,227.81,227.76,2.1946]
[1733254515696,2.1941,227.82,227.74,11.19881311]
[1733254516190,2.1941,227.82,227.77,2.1945]
[1733254516494,2.1942,227.81,227.77,2.1945]
[1733254516795,2.26,227.83,227.74,11.19881311]
[1733254516990,2.26,227.83,227.71,11.19881311]
[1733254517391,2.1946,227.78,227.73,2.195]
[1733254517703,2.26,227.77,227.71,11.19881311]
[1733254518198,2.1948,227.76,227.71,11.19881311]
[1733254519089,4.4546,227.77,227.73,2.195]
[1733254519291,2.26,227.77,227.68,11.19881311]
[1733254519792,2.1949,227.75,227.71,2.1951]
[1733254519987,2.26,227.77,227.71,2.1951]
[1733254520188,2.26,227.77,227.64,1.3508]
[1733254520389,2.26,227.77,227.63,1.3594]
[1733254520390,11.19881311,227.76,227.63,1.3594]
[1733254520690,2.26,227.77,227.65,11.19881311]
[1733254520993,2.26,227.77,227.71,11.19881311]
[1733254521192,1.3229,227.83,227.74,11.19881311]
[1733254521388,3.517,227.83,227.77,2.1946]
[1733254521588,1.3229,227.83,227.77,2.1946]
[1733254521994,3.4957,227.84,227.79,2.1943]
[1733254522198,2.1939,227.84,227.79,2.1943]
[1733254522494,2.26,227.83,227.79,2.1943]
[1733254523195,2.26,227.84,227.77,11.19881311]
[1733254523398,2.26,227.85,227.77,11.19881311]
[1733254523798,4.4538,227.85,227.8,2.1942]
[1733254523994,2.26,227.85,227.77,11.19881311]
[1733254524297,2.26,227.85,227.79,2.1944]
[1733254524298,4.4538,227.85,227.79,2.1944]
[1733254524494,2.26,227.85,227.77,11.19881311]
[1733254524697,2.26,227.85,227.74,11.19881311]
[1733254525091,2.194,227.83,227.77,2.1946]
[1733254525294,2.26,227.85,227.74,11.19881311]
[1733254526002,2.26,227.85,227.77,11.19881311]
[1733254526903,2.26,227.85,227.81,2.1942]
[1733254527298,2.26,227.85,227.77,11.19881311]
[1733254527499,2.1936,227.87,227.82,2.1941]
[1733254527903,4.4536,227.87,227.82,2.1941]
[1733254528305,2.6427,227.91,227.77,11.19881311]
[1733254528507,2.26,227.9,227.77,11.19881311]
[1733254529108,2.1937,227.87,227.82,2.1941]
[1733254529299,2.26,227.9,227.77,11.19881311]
[1733254529505,2.1935,227.89,227.83,2.1939]
[1733254530210,9.42442648,227.9,227.83,2.1939]
[1733254530416,2.1936,227.88,227.83,2.1939]
[1733254531108,2.1934,227.89,227.82,7.16442648]
[1733254531412,2.26,227.88,227.82,7.16442648]
[1733254531706,2.26,227.88,227.72,1.2957]
[1733254531912,7.16442648,227.87,227.79,7.16442648]
[1733254532207,7.16442648,227.84,227.77,7.16442648]
[1733254532413,2.26,227.83,227.77,7.16442648]
[1733254532609,2.26,227.82,227.78,2.1945]
[1733254533109,2.26,227.82,227.77,9.35902648]
[1733254533308,4.4541,227.82,227.77,7.16442648]
[1733254533713,2.26,227.82,227.77,9.35902648]
[1733254533918,4.4542,227.82,227.77,9.35902648]